bitfinex/quotes_ETHUSD_20251017
["timestamp","ask_amount","ask_price","bid_price","bid_amount"]
[1760723355519,0.2214,3811.5,3811.4,2.62370782]
[1760723355692,0.2214,3811.5,3811.3,2.62370925]
[1760723355897,0.4336,3811.4,3811.3,2.62370925]
[1760723356728,0.002,3812.1,3810.8,2.62407527]
[1760723356901,0.002,3812.1,3811.9,2.62336367]
[1760723357520,0.655,3812.0,3811.9,2.62336367]
[1760723357831,0.655,3812.0,3811.4,2.62368577]
[1760723358135,0.655,3812.0,3810.4,18.06586628]
[1760723358136,0.4336,3811.9,3810.7,2.62418978]
[1760723358432,0.4336,3811.9,3811.8,2.62343249]
[1760723359023,0.4336,3811.9,3810.8,0.26241898]
[1760723359199,0.4336,3811.9,3810.6,2.62425864]
[1760723359396,0.4336,3811.9,3811.8,2.62343249]
[1760723359641,0.4336,3811.9,3811.4,2.62364567]
[1760723359813,0.2214,3812.0,3811.7,2.62344655]
[1760723359814,0.4336,3811.8,3811.7,2.62344655]
[1760723360144,0.4336,3811.8,3811.4,2.62363915]
[1760723360347,0.4336,3811.7,3810.5,1.728]
[1760723360642,0.4336,3811.7,3811.6,2.62357015]
[1760723360798,0.4336,3811.7,3811.5,2.62363359]
[1760723361001,0.1304,3811.9,3811.8,2.62343249]
[1760723361226,0.1304,3811.9,3811.7,2.62347411]
[1760723361534,0.1304,3811.9,3811.8,2.62343249]
[1760723361920,0.1304,3811.9,3811.3,0.1304]
[1760723362242,0.4459,3811.8,3811.3,0.1304]
[1760723362449,0.4459,3811.7,3811.5,2.62362383]
[1760723362753,0.4459,3811.6,3810.9,2.62403318]
[1760723362959,0.2174,3811.0,3809.0,2.62535461]
[1760723363234,0.4459,3810.9,3810.3,2.62445779]
[1760723363430,0.4459,3810.8,3810.2,2.62452079]
[1760723363642,0.2174,3811.0,3809.6,0.32094882]
[1760723363643,0.4459,3810.7,3809.6,0.32094882]
[1760723363810,0.2174,3809.7,3809.3,2.62515249]
[1760723364015,0.2174,3809.7,3809.1,0.0857]
[1760723364016,0.2174,3809.7,3809.6,2.6249475]
[1760723364208,0.6633,3809.7,3809.6,2.6249475]
[1760723364622,0.4459,3810.3,3810.2,2.62453414]
[1760723364825,0.2174,3810.6,3810.5,2.62432751]
[1760723365617,0.6633,3810.6,3810.5,2.62432751]
[1760723366647,0.6633,3810.6,3809.1,0.0857]
[1760723366648,0.6633,3810.6,3808.9,1.728]
[1760723366843,0.6633,3810.6,3810.2,2.62451683]
[1760723366844,0.4459,3810.5,3810.2,2.62451683]
[1760723367144,0.4459,3810.4,3808.9,1.728]
[1760723367370,0.4459,3810.4,3809.2,2.62522314]
[1760723367546,0.4459,3810.3,3809.9,2.62467415]
[1760723367748,0.62906676,3810.6,3809.0,0.44391988]
[1760723367749,0.4459,3810.2,3809.3,2.62509969]
[1760723368058,0.4459,3810.1,3809.8,2.62480248]
[1760723368216,0.2174,3809.9,3809.5,2.62501378]
[1760723368550,0.2174,3809.9,3809.1,0.001]
[1760723368551,0.4459,3809.8,3809.7,2.62487859]
[1760723370644,0.2174,3809.9,3809.8,2.6248097]
[1760723370851,0.6633,3809.9,3809.1,0.001]
[1760723371053,0.6633,3809.9,3809.6,2.62493392]
[1760723371254,0.4459,3809.8,3809.6,2.62489515]
[1760723371474,0.41172702,3810.1,3809.8,2.6248097]
[1760723371629,0.6633,3810.6,3809.9,2.65097981]
[1760723371829,0.6633,3810.6,3810.5,2.62432751]
[1760723372028,0.04575359,3810.7,3810.6,2.62425864]
[1760723372330,0.4459,3811.2,3810.8,2.62410793]
[1760723372530,0.6633,3811.0,3810.8,2.62410793]
[1760723372743,0.2174,3811.0,3810.6,2.62425864]
[1760723372944,0.1312,3810.9,3810.5,2.6243198]
[1760723373347,0.1312,3810.9,3809.3,2.77]
[1760723373348,0.4459,3810.8,3809.2,4.35322314]
[1760723373664,0.2174,3811.0,3809.2,4.35322314]
[1760723373665,0.1312,3810.6,3809.9,0.1312]
[1760723373832,0.2174,3811.0,3810.1,2.62460302]
[1760723373833,0.1312,3810.2,3810.1,2.62460302]
[1760723374258,0.1312,3810.2,3809.5,0.1312]
[1760723374562,0.1312,3810.2,3810.1,2.62460302]
[1760723374752,0.5771,3810.2,3809.6,2.62487959]
[1760723375062,0.5771,3810.2,3810.1,2.62460302]
[1760723375231,0.5771,3810.2,3809.9,2.62470194]
[1760723375562,0.4459,3810.1,3809.8,2.62474101]
[1760723375865,0.2174,3809.9,3809.7,2.62483468]
[1760723376165,0.2174,3809.9,3809.8,2.6248097]
[1760723376360,0.2174,3809.9,3809.7,2.62487859]
[1760723376526,0.1312,3809.8,3809.7,2.62487859]
[1760723376862,0.5771,3809.8,3809.7,2.62487859]
[1760723377525,0.1312,3809.8,3809.7,2.62487859]
[1760723378533,0.5771,3809.8,3809.5,2.62500749]
[1760723378737,0.5771,3809.8,3809.2,0.1312]
[1760723379064,0.5771,3809.8,3809.6,2.62492338]
[1760723379226,0.5771,3809.8,3809.2,0.1312]
[1760723379650,0.4459,3809.8,3809.5,2.62500036]
[1760723379856,0.2174,3809.9,3809.5,2.62500036]
[1760723380055,0.4459,3809.7,3809.5,2.62500036]
[1760723380260,0.1312,3809.5,3809.4,2.62504301]
[1760723381859,0.2174,3809.9,3809.6,2.62489689]
[1760723382058,0.1312,3809.7,3809.6,2.62489689]
[1760723386277,0.1312,3809.7,3809.1,0.1322]
[1760723386477,0.1312,3809.7,3809.6,2.6249475]
[1760723388480,0.3506,3810.2,3810.1,2.62460302]
[1760723389394,0.3506,3810.2,3810.0,2.62465382]
[1760723389552,0.7965,3810.2,3810.1,2.62460302]
[1760723389902,0.7965,3810.2,3810.0,2.6246488]
[1760723390082,0.7965,3810.2,3810.1,2.62460302]
[1760723390249,0.3506,3810.2,3810.1,2.62460302]
[1760723391079,0.7965,3810.2,3809.7,2.62487859]
[1760723391290,0.3506,3810.2,3809.6,0.52499747]
[1760723391456,0.3506,3810.2,3809.5,0.1312]
[1760723391457,0.3506,3810.2,3810.1,2.62460302]
[1760723391884,0.1332,3810.2,3810.1,2.62460302]
[1760723392889,0.1332,3810.2,3810.0,2.62461691]
[1760723393583,0.1332,3810.2,3810.1,2.62460302]
[1760723394191,0.5942,3810.2,3809.9,2.62469155]
[1760723394385,0.1332,3810.2,3810.0,2.62462263]
[1760723395294,0.5942,3810.2,3809.5,0.1312]
[1760723395462,0.5942,3810.2,3810.0,2.62463022]
[1760723395659,0.1332,3810.2,3810.1,2.62460302]
[1760723397798,0.002,3810.2,3810.1,2.62460302]
[1760723398100,0.002,3810.2,3810.1,2.71030302]
[1760723398303,0.002,3810.2,3810.1,3.27004766]
[1760723398617,1e-08,3810.6,3810.5,2.62432751]
[1760723399066,1e-08,3810.6,3810.5,2.71002751]
[1760723400097,1e-08,3810.6,3810.5,2.73627078]
[1760723400284,1e-08,3810.6,3810.5,2.71002751]
[1760723400476,1e-08,3810.6,3810.5,3.50592471]
[1760723400679,1e-08,3810.6,3810.5,3.42022471]
[1760723400908,1e-08,3810.6,3810.5,3.53216798]
[1760723401271,1e-08,3810.6,3810.5,3.50592471]
[1760723401477,1e-08,3810.6,3810.5,3.42022471]
[1760723401676,1e-08,3810.6,3810.5,3.50592471]
[1760723401899,1e-08,3810.6,3810.5,3.42022471]
[1760723402175,1e-08,3810.6,3810.5,3.50592471]
[1760723402584,1e-08,3810.6,3810.5,3.42022471]
[1760723402810,1e-08,3810.6,3810.5,3.44646798]
[1760723403302,1e-08,3810.6,3810.5,3.42022471]
[1760723403875,1e-08,3810.6,3810.5,3.53216798]
[1760723404585,1e-08,3810.6,3810.5,3.42022471]
[1760723405480,1e-08,3810.6,3810.1,0.53349861]
[1760723405794,0.02186863,3811.8,3809.1,0.001]
[1760723405795,0.41156256,3812.3,3810.5,3.046945]
[1760723405996,0.002,3812.6,3812.4,2.62301962]
[1760723406196,0.2164,3813.5,3812.4,2.62301962]
[1760723406197,0.2164,3813.5,3812.4,2.64924981]
[1760723406369,0.2164,3813.5,3812.8,2.62274443]
[1760723406707,0.2164,3814.2,3812.8,2.64897187]
[1760723406708,0.2164,3813.9,3812.8,2.64897187]
[1760723406910,1e-08,3813.0,3812.9,2.62267565]
[1760723407072,1e-08,3813.0,3812.9,2.9510024]
[1760723407417,1e-08,3813.0,3812.9,9.81998707]
[1760723407579,0.2164,3814.5,3812.9,9.79376032]
[1760723407780,0.2164,3814.9,3813.4,2.77]
[1760723407982,0.2164,3814.9,3814.8,2.6213694]
[1760723408184,0.1304,3815.2,3815.0,2.62123197]
[1760723408508,0.6613,3815.6,3815.4,2.62095717]
[1760723408740,0.2164,3815.6,3815.4,2.62095717]
[1760723409023,0.13040001,3815.5,3815.4,2.62095717]
[1760723409238,0.57530001,3815.5,3815.4,2.62095717]
[1760723409591,0.44490001,3815.5,3815.4,2.62095717]
[1760723410505,1e-08,3815.5,3815.4,2.62095717]
[1760723410731,1e-08,3815.5,3815.4,2.75135717]
[1760723411240,0.44490001,3815.5,3815.4,2.75135717]
[1760723411436,0.44490001,3815.5,3815.4,2.62095717]
[1760723411796,0.44490001,3815.5,3814.9,0.1304]
[1760723412013,0.44490001,3815.5,3815.4,2.62095717]
[1760723412892,1e-08,3815.5,3815.4,2.62095717]
[1760723413116,1e-08,3815.5,3815.4,3.1451586]
[1760723414094,1e-08,3815.5,3815.4,3.17136817]
[1760723414296,1e-08,3815.5,3815.4,3.47346817]
[1760723414925,1e-08,3815.5,3815.4,5.20146817]
[1760723415102,1e-08,3815.5,3815.4,5.1752586]
[1760723415713,1e-08,3815.5,3815.4,4.8731586]
[1760723417017,1e-08,3815.5,3815.4,2.62095717]
[1760723417431,0.44490001,3815.5,3815.4,2.62095717]
[1760723417797,1e-08,3815.5,3815.4,2.62095717]
[1760723418000,1e-08,3815.5,3815.4,2.64716674]
[1760723418999,1e-08,3815.5,3815.4,20.16427503]
[1760723419331,0.2164,3817.0,3815.4,20.16427503]
[1760723419332,0.4449,3817.3,3817.1,2.61978989]
[1760723419628,0.49057204,3817.9,3817.8,2.61930955]
[1760723419800,0.4449,3818.4,3818.1,2.61910374]
[1760723420208,0.2164,3818.5,3817.3,2.61965263]
[1760723420408,0.2164,3818.5,3817.4,0.43476526]
[1760723420628,0.2164,3818.5,3818.4,2.61889796]
[1760723421007,0.2164,3818.8,3818.7,2.6186258]
[1760723421206,0.26206059,3819.0,3818.9,2.61855508]
[1760723421636,0.2164,3819.0,3818.9,2.61855508]
[1760723421957,15.51321786,3820.8,3818.9,2.61855508]
[1760723421958,0.04564602,3819.5,3819.4,2.61821228]
[1760723422235,0.4346,3820.4,3819.4,2.61821228]
[1760723422236,0.2205,3820.7,3820.6,2.61738993]
[1760723422435,0.04563091,3821.1,3820.2,0.0857]
[1760723422730,0.6551,3821.4,3820.8,2.61723489]
[1760723422937,0.2205,3820.9,3820.8,2.61723489]
[1760723423138,0.3509,3821.4,3821.3,2.61691047]
[1760723423436,0.93950527,3822.0,3821.2,2.61692866]
[1760723423437,0.2205,3821.7,3821.2,2.61692866]
[1760723423745,0.565,3821.6,3821.1,2.61704744]
[1760723423951,0.1304,3821.6,3821.0,0.1304]
[1760723424361,0.1304,3821.6,3821.0,2.74746035]
[1760723424564,0.1304,3821.6,3821.0,0.1304]
[1760723425259,0.1304,3821.6,3821.1,2.64315989]
[1760723425557,0.1304,3821.6,3820.2,0.0857]
[1760723425558,0.4346,3821.5,3819.7,0.0857]
[1760723425759,0.4346,3821.5,3820.5,0.1304]
[1760723425760,0.1304,3821.2,3820.5,0.1304]
[1760723426061,0.4346,3821.5,3820.6,0.02617389]
[1760723426368,0.565,3821.5,3821.0,2.61708161]
[1760723426668,0.4346,3821.5,3821.1,2.61698718]
[1760723426968,0.2205,3821.7,3821.0,0.02617115]
[1760723427174,0.2205,3821.7,3821.3,2.61691047]
[1760723427317,0.2205,3821.7,3821.2,0.02616978]
[1760723427318,0.2205,3821.7,3821.4,0.02616841]
[1760723427759,0.2205,3821.7,3820.2,0.3021]
[1760723427760,0.6551,3821.7,3820.2,0.3021]
[1760723427943,0.2205,3821.7,3821.6,2.61670504]
[1760723428249,0.6551,3821.7,3820.4,2.61746216]
[1760723428438,0.4346,3821.6,3820.4,2.61752468]
[1760723428773,0.49997229,3821.5,3819.8,2.61793811]
[1760723429047,0.2205,3821.7,3819.7,0.3573]
[1760723429048,0.4346,3821.4,3820.3,2.61753078]
[1760723429365,0.2205,3821.7,3819.7,0.3573]
[1760723429565,0.4346,3821.3,3819.7,0.0857]
[1760723429860,0.4346,3821.6,3819.8,0.3021]
[1760723430022,0.4346,3821.6,3820.7,2.61728345]
[1760723430223,0.2205,3820.8,3820.7,2.61732049]
[1760723430958,0.2205,3820.8,3820.6,2.61738949]
[1760723431161,0.2205,3820.8,3819.7,0.0857]
[1760723431162,0.4346,3820.7,3820.3,2.61758123]
[1760723431317,0.4346,3820.7,3820.5,2.61740319]
[1760723431519,0.4346,3820.7,3819.7,0.0857]
[1760723431520,0.4346,3820.6,3818.1,0.2164]
[1760723431724,1.61683179,3820.5,3819.1,2.61837469]
[1760723431921,1.61683179,3820.5,3818.1,0.2164]
[1760723431922,0.2205,3819.2,3819.0,2.61846313]
[1760723432235,0.2205,3819.5,3819.1,2.61841795]
[1760723432556,0.2205,3819.5,3818.2,0.3021]
[1760723432742,0.2205,3819.5,3819.3,2.6182621]
[1760723432969,0.2205,3819.5,3818.2,2.92113514]
[1760723433139,0.2205,3819.5,3818.3,2.04175351]
[1760723433327,0.2205,3819.5,3818.9,2.61849994]
[1760723433528,0.6551,3819.5,3819.0,2.61846501]
[1760723433729,0.4346,3819.4,3818.1,0.2164]
[1760723434032,0.4346,3819.4,3818.1,1.9444]
[1760723434223,0.2205,3819.5,3818.2,0.48254161]
[1760723434427,0.4346,3819.4,3818.1,0.2164]
[1760723434629,0.4346,3819.4,3818.2,1.75419035]
[1760723434828,0.4346,3819.4,3819.2,2.6183416]
[1760723435237,0.2205,3819.5,3818.3,2.61896655]
[1760723435436,0.2205,3819.8,3818.5,2.61882938]
[1760723435658,0.2205,3819.8,3819.7,2.61800664]
[1760723435864,0.04564012,3820.0,3819.9,2.61786957]
[1760723436238,0.04564012,3820.0,3819.8,2.61790251]
[1760723436426,0.04564012,3820.0,3818.6,2.6187608]
[1760723436427,0.4346,3820.6,3820.3,2.61752705]
[1760723436755,0.2205,3820.8,3820.5,2.61739023]
[1760723436958,0.1304,3820.6,3820.5,2.61739023]
[1760723437260,0.1304,3821.1,3820.5,2.77396481]
[1760723437478,0.2205,3821.7,3820.6,2.61738993]
[1760723437764,0.2205,3821.7,3820.7,0.1304]
[1760723437765,0.1304,3821.3,3820.7,0.1304]
[1760723438068,0.1304,3821.3,3821.0,2.61706127]
[1760723438241,0.1304,3821.3,3821.2,2.61697895]
[1760723439061,0.2205,3821.7,3821.4,2.61678648]
[1760723439248,0.3509,3821.7,3821.4,2.61678648]
[1760723439459,0.7855,3821.7,3821.3,2.61689877]
[1760723439660,0.7855,3821.7,3821.3,0.0261691]
[1760723439836,0.1304,3821.7,3821.6,2.61670504]
[1760723440036,1e-08,3821.9,3821.8,2.6165681]
[1760723440238,1e-08,3821.9,3821.8,2.64273378]
[1760723440433,1e-08,3821.9,3821.8,2.77313378]
[1760723440772,1e-08,3821.9,3821.8,2.7469681]
[1760723443136,1e-08,3821.9,3821.8,0.1304]
[1760723443341,1e-08,3821.9,3821.7,2.61662156]
[1760723443536,1e-08,3821.9,3821.6,0.15656705]
[1760723443737,1e-08,3821.9,3821.8,2.6165681]
[1760723443972,1e-08,3821.9,3821.8,2.64273378]
[1760723444170,1e-08,3821.9,3821.8,3.14251091]
[1760723445376,1e-08,3821.9,3821.8,3.44461091]
[1760723445781,1e-08,3822.0,3821.9,2.61649964]
[1760723445940,1e-08,3822.1,3822.0,2.61643118]
[1760723446278,1e-08,3822.1,3822.0,2.91853118]
[1760723446480,1e-08,3822.1,3822.0,3.52462854]
[1760723447698,1e-08,3822.1,3822.0,2.61643118]
[1760723449497,1e-08,3822.1,3822.0,2.64259549]
[1760723449886,1e-08,3822.1,3822.0,2.61643118]
[1760723450489,1e-08,3822.1,3822.0,4.34443118]
[1760723450703,1e-08,3822.1,3822.0,4.64653118]
[1760723450858,0.77033353,3822.4,3822.3,2.61622583]
[1760723451910,0.77033353,3822.4,3822.3,2.91832583]
[1760723452058,1e-08,3822.4,3822.3,2.91832583]
[1760723452251,1e-08,3822.4,3822.3,2.61622583]
[1760723452880,1e-08,3822.4,3822.3,3.28887886]
[1760723453092,1e-08,3822.4,3822.3,2.61622583]
[1760723453292,1e-08,3822.4,3822.3,2.94448808]
[1760723453476,1e-08,3822.4,3822.3,2.61622583]
[1760723453904,1e-08,3822.4,3822.3,2.74662583]
[1760723454814,1e-08,3822.4,3822.3,2.91832583]
[1760723454984,1e-08,3822.4,3822.3,2.61622583]
[1760723455393,1e-08,3822.4,3822.3,3.58474251]
[1760723455590,1e-08,3822.4,3822.3,3.88684251]
[1760723456116,1e-08,3822.4,3822.3,3.58474251]
[1760723456614,1e-08,3822.4,3822.3,2.61622583]
[1760723457892,1e-08,3822.4,3822.3,5.38622583]
[1760723458094,0.2356,3822.9,3822.3,5.38622583]
[1760723458095,1e-08,3823.0,3822.6,2.6160205]
[1760723458296,1e-08,3823.0,3822.9,4.34381521]
[1760723458694,1e-08,3823.0,3822.9,4.64591521]
[1760723458893,1e-08,3823.0,3822.9,5.6336988]
[1760723459802,1e-08,3823.0,3822.9,4.34381521]
[1760723460206,1e-08,3823.5,3823.4,2.61547313]
[1760723461093,0.46060001,3823.5,3823.4,2.61547313]
[1760723461295,0.46060001,3823.5,3822.1,0.1082]
[1760723461623,0.46060001,3823.5,3821.6,2.61767696]
[1760723461624,0.2356,3822.2,3821.6,0.001]
[1760723462125,0.2356,3822.2,3822.1,2.61636273]
[1760723462427,2.61541138,3823.5,3822.1,2.61636273]
[1760723462428,0.2356,3822.8,3822.7,2.61595207]
[1760723462809,0.6962,3822.8,3822.7,2.61595207]
[1760723463488,0.2356,3822.8,3822.7,2.61595207]
[1760723463804,0.6962,3822.8,3822.7,2.61595207]
[1760723464421,0.6962,3822.8,3822.1,2.61636273]
[1760723464597,0.1304,3822.6,3822.3,2.61621168]
[1760723464797,0.4652,3822.5,3822.0,0.001]
[1760723464998,0.4652,3822.5,3822.0,2.61741108]
[1760723465200,0.4652,3822.4,3822.2,2.61629428]
[1760723465507,0.4652,3822.3,3822.0,0.001]
[1760723466130,0.3081389,3822.2,3822.0,0.001]
[1760723466328,0.4652,3822.3,3822.0,0.001]
[1760723466530,0.4652,3822.1,3822.0,0.001]
[1760723467101,2.1932,3822.1,3822.0,0.001]
[1760723467303,26.36727019,3822.1,3822.0,0.001]
[1760723467634,33.57325772,3822.1,3822.0,0.001]
[1760723467812,25.80774672,3822.1,3822.0,0.001]
[1760723468235,29.05836372,3822.1,3822.0,0.001]
[1760723468397,9.90114226,3822.1,3822.0,0.001]
[1760723468605,0.4652,3822.1,3822.0,0.001]
[1760723468811,3.08156273,3822.1,3822.0,0.001]
[1760723469025,7.90604433,3822.1,3822.0,0.001]
[1760723469212,8.23250533,3822.1,3822.0,0.001]
[1760723469409,2.2388166,3822.1,3822.0,0.001]
[1760723469621,2.77811349,3822.1,3822.0,0.001]
[1760723470313,2.2388166,3822.1,3822.0,0.001]
[1760723470863,4.85517933,3822.1,3822.0,0.001]
[1760723471012,2.2388166,3822.1,3822.0,0.001]
[1760723472023,13.80998433,3822.1,3822.0,0.001]
[1760723472250,14.22045618,3822.1,3822.0,0.001]
[1760723472546,16.7689399,3822.1,3822.0,0.001]
[1760723472750,14.9246309,3822.1,3822.0,0.001]
[1760723473108,14.5418039,3822.1,3822.0,0.001]
[1760723473410,14.2197499,3822.1,3822.0,0.001]
[1760723473610,11.0911179,3822.1,3822.0,0.001]
[1760723474220,15.53973557,3821.7,3821.6,0.001]
[1760723474548,24.34158678,3821.7,3821.6,0.001]
[1760723474718,24.80678678,3821.7,3821.6,0.001]
[1760723474916,25.26299033,3821.7,3821.6,0.001]
[1760723475262,24.78391333,3821.7,3821.6,0.001]
[1760723475563,25.48359233,3821.7,3821.6,0.001]
[1760723476126,26.55161933,3821.7,3821.6,0.001]
[1760723476334,29.87614633,3821.7,3821.6,0.001]
[1760723476555,26.34406733,3821.7,3821.6,0.001]
[1760723476854,26.29844047,3821.7,3821.6,0.001]
[1760723477220,2.61799804,3819.8,3818.4,0.58563666]
[1760723477421,1.728,3820.1,3818.4,2.92095413]
[1760723477635,0.2273,3819.7,3819.0,2.72664137]
[1760723477934,0.2273,3819.7,3818.2,2.61903514]
[1760723477935,0.4652,3819.6,3818.2,2.61903514]
[1760723478133,0.4652,3819.6,3819.0,2.61843607]
[1760723478334,0.4652,3819.6,3817.9,0.3021]
[1760723478536,1.728,3819.4,3817.8,2.61925157]
[1760723478735,0.4652,3819.3,3818.4,2.61887846]
[1760723478937,2.61835211,3819.2,3818.0,2.72737223]
[1760723479257,0.41076029,3819.1,3818.1,2.61904109]
[1760723479426,0.41076029,3819.1,3818.0,0.38093722]
[1760723479822,0.41076029,3819.1,3818.0,0.1082]
[1760723480130,0.87596029,3819.1,3818.3,2.61890363]
[1760723480332,0.87596029,3819.1,3818.0,0.1082]
[1760723480843,0.87596029,3819.1,3818.0,2.72734369]
[1760723481036,0.87596029,3819.1,3818.0,0.1082]
[1760723481223,1.40274296,3819.1,3818.4,2.61883507]
[1760723481753,1.40274296,3819.1,3818.0,0.1082]
[1760723481957,0.2144,3818.5,3817.0,0.3878]
[1760723482255,0.4573,3818.4,3817.0,0.3878]
[1760723482432,0.4573,3818.4,3817.9,2.6192232]
[1760723482756,0.41083777,3818.2,3818.1,2.61910374]
[1760723483121,0.41083777,3818.2,3817.4,0.3021]
[1760723483326,0.71735157,3818.8,3817.0,0.0857]
[1760723483327,0.4573,3818.4,3817.0,1.8137]
[1760723483564,0.4573,3818.4,3817.5,2.61948479]
[1760723483721,0.1304,3817.8,3817.2,0.1304]
[1760723483926,0.4573,3818.4,3817.2,2.61967495]
[1760723483927,0.1304,3817.5,3817.2,2.61967495]
[1760723484126,0.1304,3817.5,3817.4,2.61958401]
[1760723484337,0.04565355,3818.2,3818.1,2.61910374]
[1760723484523,0.04565355,3818.2,3818.1,2.72730374]
[1760723484835,0.41079018,3818.6,3818.1,0.2386]
[1760723485041,0.1304,3818.7,3818.2,2.61903514]
[1760723485338,0.1304,3818.7,3818.6,2.6187608]
[1760723485659,0.1304,3818.1,3817.3,0.1304]
[1760723485956,0.1304,3818.4,3817.8,2.619288]
[1760723486259,0.1304,3818.0,3817.3,0.1304]
[1760723486461,0.1304,3818.0,3817.9,2.61924094]
[1760723487135,0.4108358,3818.6,3817.7,2.61932552]
[1760723487136,0.4108358,3818.6,3817.7,2.61937815]
[1760723487338,0.1304,3818.3,3818.2,2.61903514]
[1760723487553,0.4108358,3818.6,3818.5,2.61882938]
[1760723487770,0.5412358,3818.6,3818.2,2.61903514]
[1760723488058,0.5412358,3818.6,3817.9,0.1304]
[1760723488248,0.8681358,3818.6,3817.1,0.3021]
[1760723488451,0.8681358,3818.6,3817.9,2.61924094]
[1760723488452,0.1304,3818.0,3817.9,2.61924094]
[1760723488921,0.1304,3818.0,3817.4,0.1304]
[1760723489126,0.1304,3818.0,3817.9,2.61924094]
[1760723490060,0.1304,3818.0,3817.4,0.1304]
[1760723490445,0.1304,3818.0,3817.7,2.61933208]
[1760723490639,0.1304,3818.0,3817.9,2.61924094]
[1760723490841,0.4108358,3818.6,3818.5,2.61882938]
[1760723491425,0.0456531,3818.8,3818.7,2.61869222]
[1760723492028,0.1304,3819.1,3819.0,2.61843741]
[1760723492241,0.1304,3819.1,3819.0,2.61848651]
[1760723492441,0.1304,3819.1,3818.9,2.61853236]
[1760723492640,0.1304,3819.1,3819.0,2.61848651]
[1760723492858,0.04564474,3819.4,3819.3,2.61828083]
[1760723493044,0.41078873,3819.8,3819.7,2.61800664]
[1760723493636,0.04563699,3820.2,3820.1,2.61773252]
[1760723493844,0.17603699,3820.2,3820.1,2.61773252]
[1760723494626,0.17603699,3820.2,3820.0,2.61774444]
[1760723494831,0.17603699,3820.2,3820.1,2.61773252]
[1760723495226,0.63333699,3820.2,3819.3,0.56706557]
[1760723495430,0.1304,3819.9,3819.8,2.61793811]
[1760723497037,0.2144,3820.6,3820.1,2.61773252]
[1760723497235,0.2144,3820.6,3820.0,2.61778364]
[1760723497567,0.1304,3820.1,3819.5,0.1304]
[1760723497769,0.1304,3820.1,3819.6,2.61807519]
[1760723497981,2.61747764,3820.5,3819.7,2.6179455]
[1760723498135,0.4573,3820.0,3819.7,2.6179455]
[1760723498461,0.1304,3819.7,3819.6,2.61806649]
[1760723500865,0.1304,3819.7,3819.2,0.1082]
[1760723501067,0.6717,3819.6,3818.3,0.3021]
[1760723501247,0.6717,3819.6,3819.0,2.6184367]
[1760723501472,0.50176633,3819.5,3819.1,2.61835576]
[1760723501678,0.4573,3819.5,3818.3,2.61896655]
[1760723501851,0.4573,3819.5,3819.1,2.6184045]
[1760723502179,0.2144,3819.6,3819.2,2.61829876]
[1760723502972,0.4563633,3820.0,3819.3,2.61826582]
[1760723503282,0.4563633,3820.0,3819.1,0.1082]
[1760723503283,0.4563633,3820.0,3819.8,2.61788496]
[1760723503579,0.4563633,3820.0,3819.2,2.61834939]
[1760723503580,0.4563633,3820.0,3819.9,2.61786957]
[1760723503784,0.04564107,3820.0,3819.3,0.3021]
[1760723504084,0.04564107,3820.0,3819.8,2.61793495]
[1760723504458,0.04564107,3820.0,3818.2,2.61903514]
[1760723504459,0.6717,3819.9,3818.2,2.61903514]
[1760723504660,0.6717,3819.9,3819.3,2.61823305]
[1760723504850,2.3997,3819.9,3819.2,2.61830236]
[1760723505079,4.56028351,3819.9,3818.3,2.92196518]
[1760723505281,1.728,3819.7,3818.4,2.64508693]
[1760723505492,0.4573,3819.8,3818.3,0.30303351]
[1760723505493,0.23997,3819.6,3819.1,2.61836257]
[1760723505661,0.4573,3819.6,3819.1,2.61836257]
[1760723505994,0.4573,3819.6,3819.2,2.61831859]
[1760723506151,0.6717,3819.9,3818.4,2.61889796]
[1760723506475,1.728,3820.1,3819.4,2.61818129]
[1760723506687,0.41069504,3819.6,3819.5,2.61814373]
[1760723507056,4.80283138,3820.4,3819.7,2.61800174]
[1760723507286,0.41067875,3820.0,3819.7,2.61800174]
[1760723507704,0.41067875,3820.0,3819.6,2.61805635]
[1760723507883,0.41067875,3820.0,3819.8,2.61790244]
[1760723508253,0.41067875,3820.0,3819.1,0.4103]
[1760723508455,0.41067875,3820.0,3819.8,2.61789282]
[1760723508658,0.41067875,3820.0,3819.9,2.61786957]
[1760723508996,0.86797875,3820.0,3819.4,2.61816319]
[1760723509218,0.2144,3819.9,3819.1,2.72661048]
[1760723509504,1.38934429,3820.0,3819.1,0.1082]
[1760723509505,0.93204429,3820.0,3819.1,0.1082]
[1760723509704,0.41067875,3820.0,3819.9,2.61786957]
[1760723509871,0.41067875,3820.0,3819.9,2.91996957]
[1760723510240,0.002,3821.2,3819.9,2.91996957]
[1760723510241,0.4573,3820.8,3820.2,2.61761506]
[1760723510400,0.4573,3820.8,3819.9,0.55379274]
[1760723510401,0.4573,3820.8,3820.1,2.61772205]
[1760723510588,0.4573,3820.8,3820.0,2.61778482]
[1760723510981,0.2144,3820.9,3819.3,2.61822094]
[1760723510982,0.1304,3820.0,3819.3,0.1304]
[1760723511204,0.1304,3820.0,3819.9,2.61786957]
[1760723511801,0.1304,3820.0,3819.8,2.61792157]
[1760723512194,0.1304,3820.0,3819.3,0.1304]
[1760723512407,0.1304,3820.0,3819.9,2.61786957]
[1760723514231,0.1304,3820.0,3819.4,2.61821228]
[1760723514537,0.1304,3819.8,3819.7,2.61799931]
[1760723514837,0.1304,3819.8,3819.6,2.61806118]
[1760723515038,0.1304,3819.8,3819.1,0.2386]
[1760723515241,0.1304,3819.8,3819.1,0.52431134]
[1760723515445,0.2213,3819.9,3819.1,0.39391134]
[1760723515645,0.2213,3819.9,3818.5,0.2920998]
[1760723515927,0.2213,3819.9,3818.2,0.3021]
[1760723515928,2.1916,3819.8,3818.3,2.61896655]
[1760723516142,2.1916,3819.8,3818.2,0.3021]
[1760723516143,0.4636,3819.7,3819.3,2.61822831]
[1760723516342,0.41071919,3819.8,3819.7,2.61800664]
[1760723516704,0.2213,3819.9,3819.2,2.72653766]
[1760723516916,0.2213,3819.9,3819.4,2.61820657]
[1760723517116,0.2213,3819.9,3819.2,0.1082]
[1760723517411,0.2213,3819.9,3819.6,2.61802977]
[1760723518694,0.2213,3819.9,3819.2,2.7264854]
[1760723518900,0.2213,3819.9,3819.2,0.1082]